fUST/lending_fUST_20240524
["ID","MTS","AMOUNT","RATE_DAILY","PERIOD"]
[327811067,1716498654591,-500.0,0.00025479,5]
[327811069,1716498654603,-500.0,0.00025479,5]
[327811071,1716498654615,-500.0,0.00025479,5]
[327811073,1716498654626,-500.0,0.00025479,5]
[327811074,1716498654638,-557.28610855,0.00025479,5]
[327811076,1716498654649,-500.0,0.00025479,5]
[327811079,1716498654661,-2502.77,0.00025479,5]
[327811080,1716498654682,-2007.39,0.00025479,5]
[327811083,1716498654694,-2234.77,0.00025479,5]
[327811085,1716498654706,-555.49,0.00025479,5]
[327811087,1716498654719,-3332.89,0.00025479,5]
[327811089,1716498654730,-500.0,0.00025479,5]
[327811091,1716498654740,-1197.07,0.00025479,5]
[327811093,1716498654752,-500.0,0.00025479,5]
[327811094,1716498654762,-500.0,0.00025479,5]
[327811097,1716498654774,-864.24,0.00025479,5]
[327811099,1716498654785,-500.0,0.00025479,5]
[327811101,1716498654795,-869.58,0.00025479,5]
[327811102,1716498654807,-500.0,0.00025479,5]
[327811104,1716498654817,-1504.35,0.00025479,5]
[327811107,1716498654828,-4146.19,0.00025479,5]
[327811109,1716498654839,-564.56,0.00025479,5]
[327811111,1716498654850,-500.0,0.00025479,5]
[327811112,1716498654861,-500.0,0.00025479,5]
[327811115,1716498654872,-1201.2,0.00025479,5]
[327811116,1716498654883,-500.0,0.00025479,5]
[327811119,1716498654894,-7374.47,0.00025479,5]
[327811121,1716498654905,-1615.97,0.00025479,5]
[327811123,1716498654921,-500.0,0.00025479,5]
[327811125,1716498654935,-500.0,0.00025479,5]
[327811127,1716498654945,-651.22,0.00025479,5]
[327811129,1716498654956,-2559.34,0.00025479,5]
[327811131,1716498654966,-500.0,0.00025479,5]
[327811133,1716498654976,-4555.87,0.00025479,5]
[327811134,1716498654986,-500.0,0.00025479,5]
[327811137,1716498654996,-500.0,0.00025479,5]
[327811139,1716498655007,-500.0,0.00025479,5]
[327811141,1716498655016,-500.0,0.00025479,5]
[327811143,1716498655027,-5309.87,0.00025479,5]
[327811145,1716498655037,-671.71,0.00025479,5]
[327811147,1716498655047,-500.0,0.00025479,5]
[327811149,1716498655057,-1621.02,0.00025479,5]
[327811151,1716498655067,-502.56,0.00025479,5]
[327811153,1716498655077,-556.7188865,0.00025479,5]
[327811155,1716498655089,-500.0,0.00025479,5]
[327811157,1716498655099,-2539.75,0.00025479,5]
[327811159,1716498655109,-500.0,0.00025479,5]
[327811161,1716498655119,-2210.47,0.00025479,5]
[327811163,1716498655129,-968.23,0.00025479,5]
[327811165,1716498655139,-783.35,0.00025479,5]
[327811167,1716498655148,-500.0,0.00025479,5]
[327811169,1716498655158,-2811.14,0.00025479,5]
[327811171,1716498655173,-151.0,0.00025479,2]
[327811173,1716498655184,-500.0,0.00025479,5]
[327811175,1716498655194,-500.0,0.00025479,5]
[327811177,1716498655204,-500.0,0.00025479,5]
[327811179,1716498655215,-1020.31,0.00025479,5]
[327811181,1716498655226,-6409.29,0.00025479,5]
[327811183,1716498655236,-500.0,0.00025479,5]
[327811185,1716498655246,-500.0,0.00025479,5]
[327811187,1716498655256,-500.0,0.00025479,5]
[327811189,1716498655267,-500.0,0.00025479,5]
[327811191,1716498655276,-500.0,0.00025479,5]
[327811192,1716498655286,-2368.01,0.00025479,5]
[327811194,1716498655296,-500.0,0.00025479,5]
[327811196,1716498655306,-2233.12,0.00025479,5]
[327811198,1716498655317,-563.12,0.00025479,5]
[327811200,1716498655331,-500.0,0.00025479,5]
[327811202,1716498655340,-15547.07,0.00025479,5]
[327811204,1716498655352,-2931.56,0.00025479,5]
[327811206,1716498655362,-500.0,0.00025479,5]
[327811208,1716498655378,-753.77,0.00025479,5]
[327811210,1716498655389,-500.0,0.00025479,5]
[327811212,1716498655400,-500.0,0.00025479,5]
[327811214,1716498655410,-4572.28,0.00025479,5]
[327811217,1716498655425,-500.0,0.00025479,5]
[327811219,1716498655435,-1154.86,0.00025479,5]
[327811221,1716498655446,-500.0,0.00025479,5]
[327811223,1716498655456,-599.01,0.00025479,5]
[327811225,1716498655466,-2464.71,0.00025479,5]
[327811227,1716498655476,-769.63,0.00025479,5]
[327811229,1716498655486,-532.89,0.00025479,5]
[327811231,1716498655496,-858.31,0.00025479,5]
[327811232,1716498655506,-1102.43,0.00025479,5]
[327811235,1716498655516,-500.0,0.00025479,5]
[327811236,1716498655527,-16991.11,0.00025479,5]
[327811238,1716498655537,-1955.98,0.00025479,5]
[327811241,1716498655548,-1690.23,0.00025479,5]
[327811243,1716498655558,-500.0,0.00025479,5]
[327811245,1716498655567,-500.0,0.00025479,5]
[327811247,1716498655577,-948.2,0.00025479,5]
[327811249,1716498655587,-2472.33,0.00025479,5]
[327811251,1716498655597,-500.0,0.00025479,5]
[327811253,1716498655607,-2145.56,0.00025479,5]
[327811255,1716498655617,-500.0,0.00025479,5]
[327811257,1716498655627,-500.0,0.00025479,5]
[327811259,1716498655637,-995.63,0.00025479,5]
[327811261,1716498655646,-568.09,0.00025479,5]
[327811263,1716498655656,-1405.54,0.00025479,5]
[327811265,1716498655666,-8271.22,0.00025479,5]
[327811267,1716498655677,-1024.98,0.00025479,5]
[327811269,1716498655687,-745.86,0.00025479,5]
[327811271,1716498655696,-1000.0,0.00025631,2]
[327811273,1716498655706,-1000.0,0.00025656,2]
[327811274,1716498655715,-1000.0,0.00025681,2]
[327811276,1716498655725,-1000.0,0.00025728,2]
[327811279,1716498655734,-1000.0,0.00025731,2]
[327811281,1716498655744,-1000.0,0.00025734,2]
[327811282,1716498655753,-500.0,0.00025753,6]
[327811285,1716498655763,-500.0,0.00025753,6]
[327811286,1716498655772,-577.56,0.00025753,6]
[327811288,1716498655782,-500.0,0.00025753,6]
[327811291,1716498655792,-500.0,0.00025753,6]
[327811293,1716498655801,-500.0,0.00025753,6]
[327811295,1716498655811,-500.0,0.00025753,6]
[327811297,1716498655821,-500.0,0.00025753,6]
[327811299,1716498655831,-500.0,0.00025753,6]
[327811301,1716498655841,-500.0,0.00025753,6]
[327811303,1716498655850,-500.0,0.00025753,6]
[327811304,1716498655860,-500.0,0.00025753,6]
[327811305,1716498655869,-587.27,0.00025753,6]
[327811306,1716498655878,-500.0,0.00025753,6]
[327811307,1716498655888,-346.77,0.00025753,6]
[327811308,1716498655898,-910.79,0.00025753,6]
[327811310,1716498655908,-500.0,0.00025753,6]
[327811312,1716498655923,-500.0,0.00025753,6]
[327811314,1716498655932,-500.0,0.00025753,6]
[327811316,1716498655942,-500.0,0.00025753,6]
[327811318,1716498655952,-500.0,0.00025753,6]
[327811320,1716498655962,-500.0,0.00025753,6]
[327811322,1716498655971,-500.0,0.00025753,6]
[327811324,1716498655980,-1671.28,0.00025753,6]
[327811326,1716498655990,-500.0,0.00025753,6]
[327811328,1716498656000,-573.5,0.00025753,6]
[327811330,1716498656010,-534.68,0.00025753,6]
[327811332,1716498656019,-500.0,0.00025753,6]
[327811334,1716498656028,-500.0,0.00025753,6]
[327811336,1716498656038,-913.49,0.00025753,2]
[327811338,1716498656049,-500.0,0.00025753,6]
[327811340,1716498656058,-500.0,0.00025753,6]
[327811342,1716498656068,-1235.83,0.00025753,6]
[327811344,1716498656078,-1049.38,0.00025753,6]
[327811346,1716498656088,-1370.6,0.00025753,6]
[327811348,1716498656098,-500.0,0.00025753,6]
[327811350,1716498656107,-421.18985772,0.00025753,6]
[327811352,1716498656117,-500.0,0.00025753,6]
[327811354,1716498656130,-990.88,0.00025753,6]
[327811356,1716498656140,-500.0,0.00025753,6]
[327811358,1716498656153,-708.21,0.00025753,6]
[327811360,1716498656163,-500.0,0.00025753,6]
[327811362,1716498656178,-500.0,0.00025753,6]
[327811364,1716498656188,-500.0,0.00025753,6]
[327811366,1716498656199,-1705.69,0.00025753,6]
[327811368,1716498656209,-500.0,0.00025753,6]
[327811370,1716498656218,-559.06,0.00025753,6]
[327811372,1716498656228,-1134.56,0.00025753,6]
[327811374,1716498656237,-500.0,0.00025753,6]
[327811377,1716498656247,-1510.6,0.00025753,6]
[327811379,1716498656257,-500.0,0.00025753,6]
[327811391,1716498656267,-500.0,0.00025753,6]
[327811394,1716498656389,-870.82,0.00025753,6]
[327811396,1716498656400,-733.0,0.00025753,6]
[327811398,1716498656410,-500.0,0.00025753,6]
[327811400,1716498656426,-500.0,0.00025753,6]
[327811401,1716498656436,-1101.52,0.00025753,6]
[327811403,1716498656447,-2077.09,0.00025753,6]
[327811405,1716498656457,-500.0,0.00025753,6]
[327811407,1716498656467,-500.0,0.00025753,2]
[327811409,1716498656477,-567.41,0.00025753,6]
[327811411,1716498656487,-500.0,0.00025753,6]
[327811414,1716498656498,-952.62,0.00025753,6]
[327811416,1716498656507,-500.0,0.00025753,6]
[327811418,1716498656517,-151.0,0.00025753,2]
[327811420,1716498656526,-1266.92,0.00025753,6]
[327811422,1716498656535,-500.0,0.00025753,6]
[327811424,1716498656545,-2656.55,0.00025753,6]
[327811426,1716498656554,-1984.87,0.00025753,6]
[327811428,1716498656563,-2072.97,0.00025753,6]
[327811430,1716498656572,-500.0,0.00025753,6]
[327811432,1716498656582,-789.92,0.00025753,6]
[327811434,1716498656591,-500.0,0.00025753,6]
[327811436,1716498656601,-500.0,0.00025753,6]
[327811438,1716498656610,-500.0,0.00025753,6]
[327811440,1716498656620,-500.0,0.00025753,6]
[327811442,1716498656629,-500.0,0.00025753,6]
[327811444,1716498656638,-500.0,0.00025753,6]
[327811446,1716498656647,-500.0,0.00025753,6]
[327811448,1716498656656,-2502.77,0.00025753,6]
[327811450,1716498656670,-2007.39,0.00025753,6]
[327811452,1716498656679,-2234.77,0.00025753,6]
[327811454,1716498656688,-555.49,0.00025753,6]
[327811456,1716498656698,-3332.89,0.00025753,6]
[327811458,1716498656708,-500.0,0.00025753,6]
[327811460,1716498656718,-1197.07,0.00025753,6]
[327811462,1716498656727,-500.0,0.00025753,6]
[327811464,1716498656736,-500.0,0.00025753,6]
[327811466,1716498656746,-864.24,0.00025753,6]
[327811468,1716498656755,-500.0,0.00025753,6]
[327811470,1716498656764,-869.58,0.00025753,6]
[327811472,1716498656774,-500.0,0.00025753,6]
[327811474,1716498656783,-1504.35,0.00025753,6]
[327811476,1716498656793,-4146.19,0.00025753,6]
[327811478,1716498656803,-564.56,0.00025753,6]
[327811480,1716498656812,-500.0,0.00025753,6]
[327811482,1716498656821,-500.0,0.00025753,6]
[327811485,1716498656831,-1201.2,0.00025753,6]
[327811486,1716498656840,-500.0,0.00025753,6]
[327811489,1716498656849,-7374.47,0.00025753,6]
[327811491,1716498656858,-1615.97,0.00025753,6]
[327811493,1716498656867,-500.0,0.00025753,6]
[327811495,1716498656876,-500.0,0.00025753,6]
[327811497,1716498656886,-651.22,0.00025753,6]
[327811499,1716498656895,-2559.34,0.00025753,6]
[327811500,1716498656904,-500.0,0.00025753,6]
[327811503,1716498656914,-4555.87,0.00025753,6]
[327811504,1716498656926,-500.0,0.00025753,6]
[327811507,1716498656936,-500.0,0.00025753,6]
[327811509,1716498656945,-500.0,0.00025753,6]
[327811511,1716498656954,-500.0,0.00025753,6]
[327811513,1716498656964,-5309.87,0.00025753,6]
[327811515,1716498656973,-671.71,0.00025753,6]
[327811517,1716498656982,-500.60984852,0.00025753,6]
[327811518,1716498656991,-1621.02,0.00025753,6]
[327811521,1716498657001,-502.56,0.00025753,6]
[327811522,1716498657010,-500.0,0.00025753,6]
[327811525,1716498657020,-2539.75,0.00025753,6]
[327811527,1716498657029,-500.0,0.00025753,6]
[327811529,1716498657038,-2210.47,0.00025753,6]
[327811531,1716498657047,-783.35,0.00025753,6]
[327811533,1716498657056,-500.0,0.00025753,6]
[327811535,1716498657066,-968.23,0.00025753,6]
[327811537,1716498657075,-2811.14,0.00025753,6]
[327811539,1716498657085,-500.0,0.00025753,6]
[327811541,1716498657094,-500.0,0.00025753,6]
[327811542,1716498657103,-500.0,0.00025753,6]
[327811544,1716498657114,-1020.31,0.00025753,6]
[327811547,1716498657123,-6409.29,0.00025753,6]
[327811549,1716498657133,-500.0,0.00025753,6]
[327811551,1716498657142,-500.0,0.00025753,6]
[327811553,1716498657152,-500.0,0.00025753,6]
[327811554,1716498657161,-500.0,0.00025753,6]
[327811557,1716498657175,-500.0,0.00025753,6]
[327811559,1716498657185,-2368.01,0.00025753,6]
[327811561,1716498657195,-500.0,0.00025753,6]
[327811563,1716498657204,-2233.12,0.00025753,6]
[327811565,1716498657214,-563.12,0.00025753,6]
[327811567,1716498657224,-500.0,0.00025753,6]
[327811569,1716498657234,-15547.07,0.00025753,6]
[327811571,1716498657243,-2931.56,0.00025753,6]
[327811573,1716498657252,-500.0,0.00025753,6]
[327811575,1716498657262,-753.77,0.00025753,6]
[327811577,1716498657272,-500.0,0.00025753,6]
[327811579,1716498657281,-500.0,0.00025753,6]
[327811581,1716498657291,-4572.28,0.00025753,6]
[327811583,1716498657300,-500.0,0.00025753,6]
[327811585,1716498657309,-1154.86,0.00025753,6]
[327811587,1716498657319,-500.0,0.00025753,6]
[327811589,1716498657333,-599.01,0.00025753,6]
[327811591,1716498657343,-2464.71,0.00025753,6]
[327811593,1716498657353,-769.63,0.00025753,6]
[327811595,1716498657362,-532.89,0.00025753,6]
[327811597,1716498657373,-858.31,0.00025753,6]
[327811599,1716498657383,-1102.43,0.00025753,6]
[327811601,1716498657392,-500.0,0.00025753,6]
[327811603,1716498657402,-16991.11,0.00025753,6]
[327811605,1716498657412,-1955.98,0.00025753,6]
[327811607,1716498657431,-1690.23,0.00025753,6]
[327811609,1716498657441,-500.0,0.00025753,6]
[327811611,1716498657450,-500.0,0.00025753,6]
[327811613,1716498657460,-948.2,0.00025753,6]
[327811615,1716498657470,-2472.33,0.00025753,6]
[327811617,1716498657480,-500.0,0.00025753,6]
[327811619,1716498657489,-2145.56,0.00025753,6]
[327811622,1716498657499,-500.0,0.00025753,6]
[327811623,1716498657509,-500.0,0.00025753,6]
[327811626,1716498657519,-995.63,0.00025753,6]
[327811628,1716498657528,-568.09,0.00025753,6]
[327811629,1716498657538,-1405.54,0.00025753,6]
[327811631,1716498657548,-8271.22,0.00025753,6]
[327811633,1716498657559,-1024.98,0.00025753,6]
[327811635,1716498657569,-745.86,0.00025753,6]
[327811637,1716498657578,-1000.0,0.00025757,2]
[327811639,1716498657588,-1000.0,0.00025769,2]
[327811641,1716498657598,-1000.0,0.00025774,2]
[327811643,1716498657608,-600.0,0.00025775,2]
[327811645,1716498657617,-388.54539031,0.00025777,2]
[327811647,1716498657627,-1000.0,0.00025786,2]
[327811649,1716498657636,-1000.0,0.00025797,2]
[327811651,1716498657646,-1000.0,0.00025805,2]
[327811654,1716498657655,-1000.0,0.00025809,2]
[327811655,1716498657665,-1000.0,0.00025824,2]
[327811657,1716498657679,-238.49450948,0.00025828,2]
[327811660,1716498657688,-1000.0,0.00025834,2]
[327811662,1716498657697,-1000.0,0.00025837,2]
[327811664,1716498657707,-1000.0,0.00025849,2]
[327811666,1716498657716,-1000.0,0.0002585,2]
[327811668,1716498657725,-150.95471359,0.00025854,4]
[327811670,1716498657734,-1000.0,0.00025862,2]
[327811672,1716498657743,-1000.0,0.00025863,2]
[327811674,1716498657752,-1000.0,0.00025865,2]
[327811676,1716498657762,-1000.0,0.0002588,2]
[327811678,1716498657772,-325.58065401,0.00025897,2]
[327811680,1716498657781,-300.0,0.00025898,2]
[327811682,1716498657790,-1000.0,0.00025898,2]
[327811684,1716498657799,-1000.0,0.00025899,2]
[327811686,1716498657808,-591.0,0.000259,2]
[327811688,1716498657817,-1000.0,0.00025923,2]
[327811690,1716498657826,-150.199,0.00025978,2]
[327811692,1716498657835,-3687.30786456,0.00026,2]
[327811694,1716498657845,-200.0,0.00026,2]
[327811696,1716498657854,-11162.25110265,0.00026,2]
[327811698,1716498657863,-1000.0,0.00026,11]
[327811700,1716498657872,-1000.0,0.00026,2]
[327811702,1716498657881,-160.0,0.00026,2]
[327811704,1716498657890,-500.0,0.00026027,7]
[327811706,1716498657900,-500.0,0.00026027,7]
[327811707,1716498657909,-577.56,0.00026027,7]
[327811709,1716498657923,-500.0,0.00026027,7]
[327811712,1716498657932,-500.0,0.00026027,7]
[327811714,1716498657941,-500.0,0.00026027,7]
[327811715,1716498657950,-500.0,0.00026027,7]
[327811716,1716498657959,-500.0,0.00026027,7]
[327811717,1716498657968,-500.0,0.00026027,7]
[327811718,1716498657978,-500.0,0.00026027,7]
[327811719,1716498657987,-500.0,0.00026027,7]
[327811721,1716498657997,-500.0,0.00026027,7]
[327811723,1716498658006,-587.27,0.00026027,7]
[327811725,1716498658015,-500.0,0.00026027,7]
[327811727,1716498658024,-346.77,0.00026027,7]
[327811729,1716498658033,-910.79,0.00026027,7]
[327811730,1716498658043,-500.0,0.00026027,7]
[327811732,1716498658052,-500.0,0.00026027,7]
[327811735,1716498658061,-500.0,0.00026027,7]
[327811736,1716498658071,-500.0,0.00026027,7]
[327811738,1716498658080,-500.0,0.00026027,7]
[327811740,1716498658089,-500.0,0.00026027,7]
[327811742,1716498658098,-500.0,0.00026027,7]
[327811744,1716498658108,-1671.28,0.00026027,7]
[327811746,1716498658117,-500.0,0.00026027,7]
[327811748,1716498658127,-573.5,0.00026027,7]
[327811750,1716498658136,-534.68,0.00026027,7]
[327811752,1716498658145,-500.0,0.00026027,7]
[327811754,1716498658155,-500.0,0.00026027,7]
[327811756,1716498658164,-913.49,0.00026027,2]
[327811758,1716498658177,-500.0,0.00026027,7]
[327811761,1716498658187,-500.0,0.00026027,7]
[327811763,1716498658197,-1235.83,0.00026027,7]
[327811764,1716498658206,-1049.38,0.00026027,7]
[327811766,1716498658215,-1370.6,0.00026027,7]
[327811768,1716498658224,-500.0,0.00026027,7]
[327811771,1716498658233,-500.0,0.00026027,7]
[327811772,1716498658243,-990.88,0.00026027,7]
[327811774,1716498658252,-500.0,0.00026027,7]
[327811776,1716498658262,-708.21,0.00026027,7]
[327811778,1716498658272,-500.0,0.00026027,7]
[327811780,1716498658281,-500.0,0.00026027,7]
[327811782,1716498658290,-500.0,0.00026027,7]
[327811784,1716498658299,-1705.69,0.00026027,7]
[327811786,1716498658308,-500.0,0.00026027,7]
[327811787,1716498658318,-559.06,0.00026027,7]
[327811789,1716498658330,-1134.56,0.00026027,7]
[327811791,1716498658339,-500.0,0.00026027,7]
[327811792,1716498658349,-1510.6,0.00026027,7]
[327811793,1716498658358,-500.0,0.00026027,7]
[327811794,1716498658371,-500.0,0.00026027,7]
[327811795,1716498658380,-870.82,0.00026027,7]
[327811796,1716498658390,-733.0,0.00026027,7]
[327811797,1716498658400,-500.0,0.00026027,7]
[327811798,1716498658412,-500.0,0.00026027,7]
[327811799,1716498658428,-1101.52,0.00026027,7]
[327811800,1716498658438,-2077.09,0.00026027,7]
[327811801,1716498658448,-500.0,0.00026027,7]
[327811802,1716498658458,-500.0,0.00026027,2]
[327811803,1716498658469,-567.41,0.00026027,7]
[327811804,1716498658478,-500.0,0.00026027,7]
[327811805,1716498658489,-952.62,0.00026027,7]
[327811806,1716498658606,-500.0,0.00026027,7]
[327811807,1716498658616,-1266.92,0.00026027,7]
[327811808,1716498658625,-500.0,0.00026027,7]
[327811809,1716498658635,-2656.55,0.00026027,7]
[327811810,1716498658645,-1984.87,0.00026027,7]
[327811812,1716498658654,-2072.97,0.00026027,7]
[327811814,1716498658663,-311.94785624,0.00026027,7]
[327811816,1716498658679,-789.92,0.00026027,7]
[327811818,1716498658688,-500.0,0.00026027,7]
[327811820,1716498658698,-500.0,0.00026027,7]
[327811822,1716498658707,-500.0,0.00026027,7]
[327811824,1716498658717,-500.0,0.00026027,7]
[327811826,1716498658727,-500.0,0.00026027,7]
[327811828,1716498658736,-500.0,0.00026027,7]
[327811830,1716498658746,-500.0,0.00026027,7]
[327811832,1716498658755,-1601.34357612,0.00026027,7]
[327811853,1716498659107,175.6616625,0.00020913,2]
[327811862,1716498659390,2940.82539332,0.00022431,2]
[327811863,1716498659449,6525.29497519,0.00020913,2]
[327811864,1716498659567,3206.3219607,0.00022431,2]
[327811865,1716498659601,1700.1395124,0.00021,2]
[327811866,1716498659780,190.14877384,0.00022431,2]
[327811915,1716498700431,175.6616625,0.00020913,2]
[327811920,1716498791584,150.93962415,0.00025726,30]
[327811921,1716498791632,150.93962415,0.00025212,120]
[327811929,1716499237496,150.90945433,0.00024362,30]
[327811930,1716499237554,59.36866297,0.00023875,120]
[327811931,1716499237604,91.54079136,0.00023875,120]
[327811952,1716499630139,-444.97405667,0.00019866,2]
[327811954,1716499651116,-160.85832963,0.00019866,2]
[327811955,1716499651136,-81.50942316,0.0002041,2]
[327811959,1716499696549,3335.42754143,9.999e-05,2]
[327811960,1716499745150,-154.3788279,0.000189,2]
[327811961,1716499745171,-18519.73259364,0.00019866,2]
[327811962,1716499752163,-6380.26740636,0.00019866,2]
[327811963,1716499752183,-25322.14924914,0.0002041,2]
[327811964,1716499752202,-282.900113,0.00020414,2]
[327811965,1716499752222,-275.58742213,0.00020812,2]
[327811966,1716499752243,-5646.00094722,0.00020913,2]
[327811967,1716499752263,-161.838419,0.00021897,2]
[327811968,1716499752288,-166.666666,0.00021918,2]
[327811969,1716499752307,-986.4698358,0.00021918,2]
[327811970,1716499755213,-166.666666,0.00022431,2]
[327811972,1716499802212,150.92453773,0.00024521,30]
[327811973,1716499802332,150.92453773,0.00024031,120]
[327812032,1716499832839,-166.666666,0.00022723,2]
[327812034,1716499832849,-166.666666,0.00023342,2]
[327812036,1716499832861,-154.3788279,0.000239,2]
[327812038,1716499832872,-166.666666,0.00023962,2]
[327812041,1716499832882,-170.348368,0.00024384,2]
[327812043,1716499832892,-510.39072,0.00024384,2]
[327812045,1716499832901,-180.54518538,0.00024556,2]
[327812047,1716499832911,-2000.0,0.00024557,2]
[327812049,1716499832920,-249.64429458,0.00024557,2]
[327812051,1716499832929,-111.76482995,0.00024581,2]
[327812074,1716499833134,-54.90183605,0.00024581,2]
[327812076,1716499833152,-180.54518534,0.00024625,2]
[327812079,1716499833166,-357.84933237,0.00024656,2]
[327812081,1716499833176,-437.14213977,0.00024656,2]
[327812083,1716499833185,-369.41979823,0.00024656,2]
[327812085,1716499833195,-300.0,0.00024656,2]
[327812087,1716499833204,-300.0,0.00024656,2]
[327812089,1716499833213,-500.0,0.00024656,2]
[327812091,1716499833223,-500.0,0.00024656,2]
[327812093,1716499833232,-500.0,0.00024656,2]
[327812095,1716499833241,-359.09401884,0.00024656,2]
[327812097,1716499833250,-500.0,0.00024656,2]
[327812099,1716499833260,-500.0,0.00024656,2]
[327812101,1716499833269,-500.0,0.00024656,2]
[327812103,1716499833278,-500.0,0.00024656,2]
[327812104,1716499833287,-500.0,0.00024656,2]
[327812106,1716499833297,-500.0,0.00024656,2]
[327812108,1716499833306,-18329.38992977,0.00024657,11]
[327812110,1716499833315,-293.8,0.00024657,2]
[327812112,1716499833325,-500.0,0.00024657,2]
[327812114,1716499833334,-500.0,0.00024657,2]
[327812116,1716499833345,-500.0,0.00024657,2]
[327812118,1716499833354,-500.0,0.00024657,2]
[327812120,1716499833363,-465.11459996,0.00024657,2]
[327812123,1716499833375,-34.88540004,0.00024657,2]
[327812125,1716499833384,-500.0,0.00024657,2]
[327812127,1716499833394,-500.0,0.00024657,2]
[327812129,1716499833403,-500.0,0.00024657,2]
[327812130,1716499833412,-500.0,0.00024657,2]
[327812132,1716499833421,-832.66,0.00024657,2]
[327812134,1716499833431,-500.0,0.00024657,2]
[327812136,1716499833440,-500.0,0.00024657,2]
[327812138,1716499833450,-1132.95,0.00024657,2]
[327812140,1716499833459,-500.0,0.00024657,2]
[327812142,1716499833468,-500.0,0.00024657,2]
[327812144,1716499833477,-500.0,0.00024657,2]
[327812146,1716499833488,-469.97185424,0.00024657,2]
[327812148,1716499833497,-500.0,0.00024657,2]
[327812150,1716499833506,-500.0,0.00024657,2]
[327812152,1716499833515,-714.46,0.00024657,2]
[327812154,1716499833524,-500.0,0.00024657,2]
[327812156,1716499833534,-500.0,0.00024657,2]
[327812158,1716499833543,-716.81,0.00024657,2]
[327812160,1716499833552,-500.0,0.00024657,2]
[327812162,1716499833562,-750.66,0.00024657,2]
[327812164,1716499833572,-500.0,0.00024657,2]
[327812166,1716499833581,-1548.48,0.00024657,2]
[327812168,1716499833596,-788.21,0.00024657,2]
[327812170,1716499833605,-500.0,0.00024657,2]
[327812172,1716499833615,-1957.26,0.00024657,2]
[327812174,1716499833624,-590.47,0.00024657,2]
[327812176,1716499833634,-500.0,0.00024657,2]
[327812178,1716499833643,-500.0,0.00024657,2]
[327812180,1716499833653,-1027.95,0.00024657,2]
[327812182,1716499833663,-926.87,0.00024657,2]
[327812184,1716499833672,-500.0,0.00024657,2]
[327812186,1716499833682,-1253.46,0.00024657,2]
[327812188,1716499833691,-500.0,0.00024657,2]
[327812190,1716499833700,-500.0,0.00024657,2]
[327812192,1716499833709,-500.0,0.00024657,2]
[327812194,1716499833719,-165.55750457,0.00024657,2]
[327812196,1716499833729,-500.0,0.00024657,2]
[327812198,1716499833740,-500.0,0.00024657,2]
[327812200,1716499833752,-500.0,0.00024657,2]
[327812202,1716499833761,-500.0,0.00024657,2]
[327812203,1716499833770,-500.0,0.00024657,2]
[327812205,1716499833779,-500.0,0.00024657,2]
[327812207,1716499833789,-850.92,0.00024657,2]
[327812209,1716499833799,-500.0,0.00024657,2]